fUSD/lending_fUSD_20240708
["ID","MTS","AMOUNT","RATE_DAILY","PERIOD"]
[331501169,1720440726947,-2326.97,0.00051506,120]
[331501170,1720440727022,-7204.83,0.00051506,120]
[331501171,1720440727097,-2038.8,0.00051506,120]
[331501172,1720440727175,-1237.99,0.00051506,120]
[331501173,1720440727250,-671.15,0.00051506,120]
[331501174,1720440727331,-507.99,0.00051506,120]
[331501175,1720440727408,-500.0,0.00051506,120]
[331501176,1720440727484,-943.16,0.00051506,120]
[331501177,1720440727556,-5931.18,0.00051506,120]
[331501178,1720440727625,-4626.82,0.00051506,120]
[331501179,1720440727692,-789.69,0.00051506,120]
[331501180,1720440727763,-1802.66,0.00051506,120]
[331501181,1720440727832,-2327.97,0.00051506,120]
[331501182,1720440727901,-500.0,0.00051506,120]
[331501183,1720440727973,-2179.21,0.00051506,120]
[331501184,1720440728041,-2045.63,0.00051506,120]
[331501185,1720440728119,-679.68,0.00051506,120]
[331501186,1720440728197,-500.0,0.00051506,120]
[331501187,1720440728273,-500.0,0.00051506,120]
[331501188,1720440728352,-5851.04,0.00051506,120]
[331501189,1720440728424,-413.06241082,0.00051506,120]
[331501190,1720440728497,-790.26,0.00051506,120]
[331501191,1720440728571,-3857.14,0.00051506,120]
[331501192,1720440728646,-500.0,0.00051506,120]
[331501193,1720440728719,-500.0,0.00051506,120]
[331501194,1720440728793,-500.0,0.00051506,40]
[331501195,1720440728869,-918.0,0.00051506,120]
[331501196,1720440728946,-1071.27,0.00051506,120]
[331501197,1720440729024,-500.0,0.00051506,120]
[331501198,1720440729100,-1237.8,0.00051506,120]
[331501199,1720440729177,-9335.91,0.00051506,120]
[331501200,1720440729255,-1080.21,0.00051506,120]
[331501201,1720440729334,-971.7,0.00051506,120]
[331501202,1720440729409,-500.0,0.00051506,120]
[331501203,1720440729481,-500.0,0.00051506,120]
[331501204,1720440729548,-500.0,0.00051506,120]
[331501205,1720440729617,-500.0,0.00051506,120]
[331501206,1720440729688,-4880.04,0.00051506,120]
[331501207,1720440729757,-836.04,0.00051506,120]
[331501208,1720440729830,-2472.65,0.00051506,120]
[331501209,1720440729898,-550.11,0.00051506,120]
[331501210,1720440729967,-1021.84,0.00051506,120]
[331501211,1720440730039,-500.0,0.00051506,120]
[331501212,1720440730116,-500.0,0.00051506,120]
[331501213,1720440730187,-500.0,0.00051506,120]
[331501214,1720440730256,-500.0,0.00051506,120]
[331501215,1720440730329,-1033.51,0.00051506,120]
[331501216,1720440730403,-500.0,0.00051506,120]
[331501217,1720440730474,-820.16,0.00051506,120]
[331501218,1720440730543,-1695.51,0.00051506,120]
[331501219,1720440730611,-4157.78,0.00051506,120]
[331501220,1720440730682,-511.6,0.00051506,120]
[331501221,1720440730753,-3132.94,0.00051506,120]
[331501222,1720440730827,-1913.66,0.00051506,120]
[331501223,1720440731122,-500.0,0.00051506,120]
[331501224,1720440731199,-1698.07,0.00051506,120]
[331501225,1720440731270,-652.08,0.00051506,120]
[331501226,1720440731336,-500.0,0.00051506,120]
[331501227,1720440731404,-500.0,0.00051506,120]
[331501228,1720440731470,-637.31,0.00051506,120]
[331501229,1720440731539,-572.94,0.00051506,120]
[331501230,1720440731605,-3335.79,0.00051506,120]
[331501231,1720440731673,-500.0,0.00051506,120]
[331501232,1720440731743,-500.0,0.00051506,120]
[331501233,1720440731814,-1910.14,0.00051506,120]
[331501234,1720440731883,-2108.8,0.00051506,120]
[331501235,1720440731953,-694.53,0.00051506,120]
[331501236,1720440732023,-500.0,0.00051506,120]
[331501237,1720440732094,-500.0,0.00051506,120]
[331501238,1720440732167,-1154.16,0.00051506,120]
[331501239,1720440732237,-1564.34,0.00051506,120]
[331501240,1720440732301,-500.0,0.00051506,120]
[331501241,1720440732367,-2059.4,0.00051506,120]
[331501242,1720440732434,-3033.38,0.00051506,120]
[331501243,1720440732502,-500.0,0.00051506,120]
[331501244,1720440732574,-500.0,0.00051506,120]
[331501245,1720440732641,-989.58,0.00051506,120]
[331501246,1720440732705,-2399.84,0.00051506,120]
[331501247,1720440732769,-500.0,0.00051506,120]
[331501248,1720440732833,-500.0,0.00051506,120]
[331501249,1720440732899,-500.0,0.00051506,120]
[331501250,1720440732965,-1672.29,0.00051506,120]
[331501251,1720440733028,-500.0,0.00051506,120]
[331501252,1720440733096,-500.0,0.00051506,120]
[331501253,1720440733168,-1604.31,0.00051506,120]
[331501254,1720440733232,-500.0,0.00051506,120]
[331501255,1720440733297,-500.0,0.00051506,120]
[331501256,1720440733363,-500.0,0.00051506,120]
[331501257,1720440733429,-2417.35,0.00051506,120]
[331501258,1720440733494,-514.58242169,0.00051506,120]
[331501259,1720440733558,-500.0,0.00051506,120]
[331501260,1720440733622,-500.0,0.00051506,120]
[331501261,1720440733687,-691.6,0.00051506,120]
[331501262,1720440733751,-1416.43,0.00051506,120]
[331501263,1720440733815,-220.87342569,0.00051506,120]
[331501264,1720440733879,-972.54,0.00051506,120]
[331501265,1720440733947,-500.0,0.00051506,120]
[331501266,1720440734016,-1198.2,0.00051506,120]
[331501267,1720440734084,-992.98,0.00051506,120]
[331501268,1720440734153,-1035.8,0.00051506,120]
[331501269,1720440734224,-542.92,0.00051506,120]
[331501270,1720440734299,-500.0,0.00051506,120]
[331501271,1720440734372,-3821.85,0.00051506,120]
[331501272,1720440734443,-500.0,0.00051506,120]
[331501273,1720440734515,-500.0,0.00051506,120]
[331501274,1720440734585,-500.0,0.00051506,120]
[331501275,1720440734658,-587.73,0.00051506,120]
[331501276,1720440734727,-971.56,0.00051506,120]
[331501277,1720440734796,-500.0,0.00051506,120]
[331501278,1720440734864,-1317.09,0.00051506,120]
[331501279,1720440734931,-500.0,0.00051506,120]
[331501280,1720440735000,-1389.08,0.00051506,120]
[331501281,1720440735072,-500.0,0.00051506,120]
[331501282,1720440735145,-1639.49,0.00051506,120]
[331501283,1720440735218,-867.82,0.00051506,120]
[331501284,1720440735289,-500.0,0.00051506,120]
[331501285,1720440735360,-500.0,0.00051506,120]
[331501286,1720440735432,-500.0,0.00051506,120]
[331501287,1720440735506,-615.39,0.00051506,120]
[331501288,1720440735578,-500.0,0.00051506,120]
[331501289,1720440735648,-500.0,0.00051506,120]
[331501290,1720440735720,-2430.97,0.00051506,120]
[331501291,1720440735788,-500.0,0.00051506,120]
[331501292,1720440735857,-500.0,0.00051506,120]
[331501293,1720440735929,-2066.55,0.00051506,120]
[331501294,1720440736001,-921.41,0.00051506,120]
[331501295,1720440736079,-548.85,0.00051506,120]
[331501296,1720440736155,-500.0,0.00051506,120]
[331501297,1720440736228,-500.0,0.00051506,120]
[331501298,1720440736302,-1045.8,0.00051506,120]
[331501299,1720440736371,-500.0,0.00051506,120]
[331501300,1720440736438,-3346.99,0.00051506,120]
[331501301,1720440736503,-2785.91,0.00051506,120]
[331501302,1720440736575,-500.0,0.00051506,120]
[331501303,1720440736642,-613.69,0.00051506,120]
[331501304,1720440736710,-500.0,0.00051506,120]
[331501305,1720440736777,-500.0,0.00051506,120]
[331501306,1720440736842,-500.0,0.00051506,120]
[331501307,1720440736907,-240.95655021,0.00051506,120]
[331501308,1720440736973,-2884.68,0.00051506,120]
[331501309,1720440737039,-1223.29,0.00051506,120]
[331501310,1720440737109,-1430.22,0.00051506,120]
[331501311,1720440737183,-521.67,0.00051506,120]
[331501312,1720440737255,-500.0,0.00051506,120]
[331501313,1720440737332,-1451.36,0.00051506,120]
[331501314,1720440737406,-500.0,0.00051506,120]
[331501315,1720440737478,-611.61,0.00051506,120]
[331501316,1720440737558,-919.43,0.00051506,120]
[331501317,1720440737636,-729.84,0.00051506,120]
[331501318,1720440737712,-500.0,0.00051506,120]
[331501319,1720440737785,-179.68986338,0.00051506,120]
[331501320,1720440737860,-500.0,0.00051506,120]
[331501321,1720440737935,-1252.38,0.00051506,120]
[331501322,1720440738016,-902.66,0.00051506,120]
[331501323,1720440738088,-1130.53,0.00051506,120]
[331501324,1720440738165,-1710.79,0.00051506,120]
[331501325,1720440738247,-1387.34,0.00051506,120]
[331501326,1720440738325,-558.45,0.00051506,120]
[331501327,1720440738617,-801.29,0.00051506,120]
[331501328,1720440738695,-595.41,0.00051506,120]
[331501329,1720440738769,-500.0,0.00051506,120]
[331501330,1720440738840,-500.0,0.00051506,120]
[331501331,1720440738916,-681.95,0.00051506,120]
[331501332,1720440738991,-647.19,0.00051506,120]
[331501333,1720440739064,-500.0,0.00051506,120]
[331501334,1720440739138,-500.0,0.00051506,120]
[331501335,1720440739210,-500.0,0.00051506,120]
[331501336,1720440739282,-500.0,0.00051506,120]
[331501337,1720440739357,-920.91,0.00051506,120]
[331501338,1720440739425,-809.57,0.00051506,120]
[331501339,1720440739495,-508.51,0.00051506,120]
[331501340,1720440739564,-866.07,0.00051506,120]
[331501341,1720440739634,-1342.46,0.00051506,120]
[331501342,1720440739706,-500.0,0.00051506,120]
[331501343,1720440739775,-500.0,0.00051506,120]
[331501344,1720440739845,-669.08,0.00051506,120]
[331501345,1720440739921,-500.0,0.00051506,120]
[331501346,1720440739999,-500.0,0.00051506,120]
[331501347,1720440740074,-924.87,0.00051506,120]
[331501348,1720440740146,-1526.59,0.00051506,120]
[331501349,1720440740218,-2651.63,0.00051506,120]
[331501350,1720440740288,-500.0,0.00051506,120]
[331501351,1720440740358,-512.16892873,0.00051506,120]
[331501352,1720440740427,-191.9383627,0.00051506,120]
[331501353,1720440740497,-2744.63,0.00051506,120]
[331501354,1720440740565,-2267.0,0.00051506,120]
[331501355,1720440740631,-458.64200821,0.00051506,120]
[331501356,1720440740699,-500.0,0.00051506,120]
[331501357,1720440740770,-574.0,0.00051506,120]
[331501358,1720440740843,-775.01,0.00051506,120]
[331501359,1720440740917,-500.0,0.00051506,120]
[331501360,1720440740988,-500.0,0.00051506,120]
[331501361,1720440741059,-500.0,0.00051506,90]
[331501362,1720440741132,-1695.04,0.00051506,120]
[331501363,1720440741203,-500.0,0.00051506,120]
[331501364,1720440741275,-500.0,0.00051506,120]
[331501365,1720440741345,-500.0,0.00051506,120]
[331501366,1720440741414,-2426.36,0.00051506,120]
[331501367,1720440741482,-1245.56,0.00051506,120]
[331501368,1720440741553,-500.0,0.00051506,120]
[331501369,1720440741625,-785.15,0.00051506,120]
[331501370,1720440741694,-1245.98,0.00051506,120]
[331501371,1720440741764,-1155.34,0.00051506,120]
[331501372,1720440741839,-500.0,0.00051506,120]
[331501373,1720440741911,-555.03,0.00051506,120]
[331501374,1720440741983,-500.0,0.00051506,120]
[331501375,1720440742057,-803.39,0.00051506,120]
[331501376,1720440742129,-500.0,0.00051506,120]
[331501377,1720440742198,-1305.54,0.00051506,120]
[331501378,1720440742270,-949.65,0.00051506,120]
[331501379,1720440742340,-500.0,0.00051506,120]
[331501380,1720440742412,-500.0,0.00051506,120]
[331501381,1720440742482,-500.0,0.00051506,120]
[331501382,1720440742550,-1347.23,0.00051506,120]
[331501383,1720440742625,-568.39,0.00051506,120]
[331501384,1720440742699,-500.0,0.00051506,120]
[331501385,1720440742777,-500.0,0.00051506,120]
[331501386,1720440742846,-784.35,0.00051506,120]
[331501387,1720440742915,-796.74,0.00051506,120]
[331501388,1720440742985,-500.0,0.00051506,120]
[331501389,1720440743054,-500.0,0.00051506,120]
[331501390,1720440743126,-838.64,0.00051506,120]
[331501391,1720440743199,-500.0,0.00051506,120]
[331501392,1720440743275,-739.18,0.00051506,120]
[331501393,1720440743352,-995.21,0.00051506,120]
[331501394,1720440743423,-1155.36,0.00051506,120]
[331501395,1720440743493,-751.81,0.00051506,120]
[331501396,1720440743560,-1142.72,0.00051506,120]
[331501397,1720440743626,-2126.32,0.00051506,120]
[331501398,1720440743693,-1163.78,0.00051506,120]
[331501399,1720440743763,-743.53,0.00051506,120]
[331501400,1720440743834,-500.0,0.00051506,120]
[331501401,1720440743903,-934.66,0.00051506,120]
[331501402,1720440743976,-500.0,0.00051506,120]
[331501403,1720440744049,-995.22,0.00051506,120]
[331501404,1720440744122,-784.36,0.00051506,120]
[331501405,1720440744196,-1658.26,0.00051506,120]
[331501406,1720440744277,-1579.18,0.00051506,120]
[331501407,1720440744354,-500.0,0.00051506,120]
[331501408,1720440744428,-500.0,0.00051506,120]
[331501409,1720440744504,-580.63,0.00051506,120]
[331501410,1720440744579,-500.0,0.00051506,120]
[331501411,1720440744652,-500.0,0.00051506,120]
[331501412,1720440744724,-500.0,0.00051506,120]
[331501413,1720440744796,-500.0,0.00051506,120]
[331501414,1720440744871,-693.77,0.00051506,120]
[331501415,1720440744947,-633.12,0.00051506,120]
[331501416,1720440745024,-1079.99,0.00051506,120]
[331501417,1720440745099,-500.0,0.00051506,120]
[331501418,1720440745177,-510.79,0.00051506,120]
[331501419,1720440745250,-500.0,0.00051506,120]
[331501420,1720440745321,-534.95,0.00051506,120]
[331501421,1720440745392,-808.16,0.00051506,120]
[331501422,1720440745465,-500.0,0.00051506,120]
[331501423,1720440745538,-2055.98,0.00051506,120]
[331501424,1720440745614,-652.14,0.00051506,120]
[331501425,1720440745684,-500.0,0.00051506,120]
[331501426,1720440745757,-837.72,0.00051506,120]
[331501427,1720440745828,-500.0,0.00051506,120]
[331501428,1720440745902,-974.55,0.00051506,120]
[331501429,1720440745976,-500.0,0.00051506,120]
[331501430,1720440746048,-500.0,0.00051506,120]
[331501431,1720440746361,-668.71,0.00051506,120]
[331501432,1720440746437,-918.92,0.00051506,120]
[331501433,1720440746508,-500.0,0.00051506,120]
[331501434,1720440746582,-520.05802734,0.00051506,120]
[331501435,1720440746654,-733.46,0.00051506,120]
[331501436,1720440746725,-500.0,0.00051506,120]
[331501437,1720440746797,-500.0,0.00051506,120]
[331501438,1720440746873,-777.5,0.00051506,120]
[331501439,1720440746948,-500.0,0.00051506,120]
[331501440,1720440747021,-500.0,0.00051506,120]
[331501441,1720440747097,-843.38,0.00051506,120]
[331501442,1720440747173,-500.0,0.00051506,120]
[331501443,1720440747244,-500.0,0.00051506,120]
[331501444,1720440747317,-852.37,0.00051506,120]
[331501445,1720440747391,-500.0,0.00051506,120]
[331501446,1720440747464,-500.0,0.00051506,120]
[331501447,1720440747537,-500.0,0.00051506,120]
[331501448,1720440747617,-500.0,0.00051506,120]
[331501449,1720440747690,-1186.97,0.00051506,120]
[331501450,1720440747763,-500.0,0.00051506,120]
[331501451,1720440747834,-500.0,0.00051506,120]
[331501452,1720440747905,-1241.83,0.00051506,120]
[331501453,1720440747979,-807.64,0.00051506,120]
[331501454,1720440748054,-190.71927374,0.00051506,120]
[331501455,1720440748130,-500.0,0.00051506,120]
[331501456,1720440748201,-500.0,0.00051506,120]
[331501457,1720440748275,-500.0,0.00051506,120]
[331501458,1720440748354,-803.38,0.00051506,120]
[331501459,1720440748431,-657.3,0.00051506,120]
[331501460,1720440748503,-1355.78,0.00051506,120]
[331501461,1720440748575,-500.0,0.00051506,120]
[331501462,1720440748646,-500.0,0.00051506,120]
[331501463,1720440748718,-500.0,0.00051506,120]
[331501464,1720440748788,-500.0,0.00051506,120]
[331501465,1720440748858,-500.0,0.00051506,120]
[331501466,1720440748926,-500.0,0.00051506,120]
[331501467,1720440748998,-500.0,0.00051506,120]
[331501468,1720440749069,-500.0,0.00051506,120]
[331501469,1720440749139,-500.0,0.00051506,120]
[331501470,1720440749207,-500.0,0.00051506,120]
[331501471,1720440749278,-500.0,0.00051506,120]
[331501472,1720440749350,-525.31,0.00051506,120]
[331501473,1720440749419,-682.0,0.00051506,120]
[331501474,1720440749486,-500.0,0.00051506,120]
[331501475,1720440749555,-500.0,0.00051506,120]
[331501476,1720440749625,-500.0,0.00051506,120]
[331501477,1720440749692,-1095.38,0.00051506,120]
[331501478,1720440749762,-1081.98,0.00051506,120]
[331501479,1720440749832,-766.48,0.00051506,120]
[331501480,1720440749899,-500.0,0.00051506,120]
[331501481,1720440749967,-500.0,0.00051506,120]
[331501482,1720440750033,-500.0,0.00051506,120]
[331501483,1720440750100,-712.75,0.00051506,120]
[331501484,1720440750170,-500.0,0.00051506,120]
[331501485,1720440750240,-500.0,0.00051506,120]
[331501486,1720440750306,-887.36,0.00051506,120]
[331501487,1720440750371,-989.73,0.00051506,120]
[331501488,1720440750441,-161.46195738,0.00051506,120]
[331501489,1720440750510,-568.6,0.00051506,120]
[331501490,1720440750579,-500.0,0.00051506,120]
[331501491,1720440750643,-500.0,0.00051506,120]
[331501492,1720440750709,-500.0,0.00051506,120]
[331501493,1720440750779,-500.0,0.00051506,120]
[331501494,1720440750845,-665.12,0.00051506,120]
[331501495,1720440750913,-500.0,0.00051506,120]
[331501496,1720440750978,-500.0,0.00051506,120]
[331501497,1720440751046,-500.0,0.00051506,120]
[331501498,1720440751116,-785.44,0.00051506,120]
[331501499,1720440751190,-2486.56,0.00051506,120]
[331501500,1720440751265,-340.38338246,0.00051506,120]
[331501501,1720440751333,-500.0,0.00051506,120]
[331501502,1720440751402,-500.0,0.00051506,120]
[331501503,1720440751473,-500.0,0.00051506,120]
[331501504,1720440751543,-500.0,0.00051506,120]
[331501505,1720440751610,-500.0,0.00051506,120]
[331501506,1720440751677,-500.0,0.00051506,120]
[331501507,1720440751744,-500.0,0.00051506,120]
[331501508,1720440751810,-500.0,0.00051506,120]
[331501509,1720440751873,-500.0,0.00051506,120]
[331501510,1720440751934,-500.0,0.00051506,120]
[331501511,1720440751995,-500.0,0.00051506,120]
[331501512,1720440752055,-500.0,0.00051506,120]
[331501513,1720440752120,-891.8,0.00051506,120]
[331501514,1720440752180,-500.0,0.00051506,120]
[331501515,1720440752240,-500.0,0.00051506,120]
[331501516,1720440752299,-500.0,0.00051506,120]
[331501517,1720440752357,-500.0,0.00051506,120]
[331501518,1720440752415,-608.44,0.00051506,120]
[331501519,1720440752472,-500.0,0.00051506,120]
[331501520,1720440752528,-705.57,0.00051506,120]
[331501521,1720440752604,-500.0,0.00051506,120]
[331501522,1720440752680,-502.79,0.00051506,120]
[331501523,1720440752750,-500.0,0.00051506,120]
[331501524,1720440752819,-605.18,0.00051506,120]
[331501525,1720440752884,-500.0,0.00051506,120]
[331501526,1720440752946,-500.0,0.00051506,120]
[331501527,1720440753014,-500.0,0.00051506,120]
[331501528,1720440753081,-500.0,0.00051506,120]
[331501529,1720440753150,-152.52,0.00051506,120]
[331501530,1720440753222,-500.0,0.00051506,120]
[331501531,1720440753289,-500.0,0.00051506,120]
[331501532,1720440753360,-500.0,0.00051506,120]
[331501533,1720440753430,-500.0,0.00051506,120]
[331501534,1720440753502,-500.0,0.00051506,120]
[331501535,1720440753804,-204.09218918,0.00051506,120]
[331501536,1720440753881,-500.0,0.00051506,120]
[331501537,1720440753954,-500.0,0.00051506,120]
[331501538,1720440754025,-712.81,0.00051506,120]
[331501539,1720440754099,-534.72,0.00051506,120]
[331501540,1720440754174,-1760.36,0.00051506,120]
[331501541,1720440754247,-800.08,0.00051506,120]
[331501542,1720440754320,-894.69,0.00051506,120]
[331501543,1720440754392,-500.0,0.00051506,120]
[331501544,1720440754465,-723.54,0.00051506,120]
[331501545,1720440754540,-530.59,0.00051506,120]
[331501546,1720440754614,-500.0,0.00051506,120]
[331501547,1720440754689,-839.95,0.00051506,120]
[331501548,1720440754761,-500.0,0.00051506,120]
[331501549,1720440754835,-511.1,0.00051506,120]
[331501550,1720440754909,-500.0,0.00051506,120]
[331501551,1720440754982,-760.52,0.00051506,120]
[331501552,1720440755058,-500.0,0.00051506,120]
[331501553,1720440755135,-866.49,0.00051506,120]
[331501554,1720440755209,-500.0,0.00051506,120]
[331501555,1720440755287,-500.0,0.00051506,120]
[331501556,1720440755359,-500.0,0.00051506,120]
[331501557,1720440755429,-500.0,0.00051506,120]
[331501558,1720440755499,-500.0,0.00051506,120]
[331501559,1720440755570,-500.0,0.00051506,120]
[331501560,1720440755643,-500.0,0.00051506,120]
[331501561,1720440755717,-500.0,0.00051506,120]
[331501562,1720440755790,-500.0,0.00051506,120]
[331501563,1720440755864,-500.0,0.00051506,120]
[331501564,1720440755938,-500.0,0.00051506,120]
[331501565,1720440756012,-500.0,0.00051506,120]
[331501566,1720440756087,-500.0,0.00051506,120]
[331501567,1720440756161,-500.0,0.00051506,120]
[331501568,1720440756233,-893.31,0.00051506,120]
[331501569,1720440756303,-500.0,0.00051506,120]
[331501570,1720440756373,-500.0,0.00051506,120]
[331501571,1720440756445,-500.0,0.00051506,120]
[331501572,1720440756517,-500.0,0.00051506,120]
[331501573,1720440756587,-500.0,0.00051506,120]
[331501574,1720440756655,-500.0,0.00051506,120]
[331501575,1720440756723,-500.0,0.00051506,120]
[331501576,1720440756793,-500.0,0.00051506,120]
[331501577,1720440756860,-500.0,0.00051506,120]
[331501578,1720440756927,-156.18516073,0.00051506,120]
[331501579,1720440756996,-500.0,0.00051506,120]
[331501580,1720440757068,-1290.88,0.00051506,120]
[331501581,1720440757140,-500.0,0.00051506,120]
[331501582,1720440757210,-500.0,0.00051506,120]
[331501583,1720440757278,-585.61,0.00051506,120]
[331501584,1720440757348,-574.25,0.00051506,120]
[331501585,1720440757416,-500.0,0.00051506,120]
[331501586,1720440757482,-500.0,0.00051506,120]
[331501587,1720440757548,-500.0,0.00051506,120]
[331501588,1720440757616,-500.0,0.00051506,120]
[331501589,1720440757681,-500.0,0.00051506,120]
[331501590,1720440757746,-500.0,0.00051506,120]
[331501591,1720440757813,-500.0,0.00051506,120]
[331501592,1720440757883,-500.0,0.00051506,120]
[331501593,1720440757951,-891.99,0.00051506,120]
[331501594,1720440758020,-500.0,0.00051506,120]
[331501595,1720440758093,-500.0,0.00051506,120]
[331501596,1720440758167,-399.65985784,0.00051506,120]
[331501597,1720440758242,-518.21,0.00051506,120]
[331501598,1720440758313,-500.0,0.00051506,120]
[331501599,1720440758388,-500.0,0.00051506,120]
[331501600,1720440758462,-973.06,0.00051506,120]
[331501601,1720440758537,-1101.05,0.00051506,120]
[331501602,1720440758607,-500.0,0.00051506,120]
[331501603,1720440758673,-500.0,0.00051506,120]
[331501604,1720440758740,-1143.52,0.00051506,120]
[331501605,1720440758807,-500.0,0.00051506,120]
[331501606,1720440758873,-589.06,0.00051506,120]
[331501607,1720440758941,-500.0,0.00051506,120]
[331501608,1720440759009,-500.0,0.00051506,120]
[331501609,1720440759081,-729.17,0.00051506,120]
[331501610,1720440759153,-500.0,0.00051506,120]
[331501611,1720440759224,-500.0,0.00051506,120]
[331501612,1720440759298,-765.16,0.00051506,120]
[331501613,1720440759372,-512.67758735,0.00051506,120]
[331501614,1720440759445,-538.46,0.00051506,120]
[331501615,1720440759516,-500.0,0.00051506,120]
[331501616,1720440759588,-500.0,0.00051506,120]
[331501617,1720440759660,-500.0,0.00051506,120]
[331501618,1720440759735,-614.0853264,0.00051506,120]
[331501619,1720440759807,-577.54,0.00051506,120]
[331501620,1720440759882,-500.0,0.00051506,120]
[331501621,1720440759956,-987.37,0.00051506,120]
[331501622,1720440760032,-500.0,0.00051506,120]
[331501623,1720440760106,-500.0,0.00051506,120]
[331501624,1720440760184,-500.0,0.00051506,120]
[331501625,1720440760261,-500.0,0.00051506,120]
[331501626,1720440760334,-707.5,0.00051506,120]
[331501627,1720440760408,-500.0,0.00051506,120]
[331501628,1720440760478,-503.17844613,0.00051506,120]
[331501629,1720440760548,-943.37,0.00051506,120]
[331501630,1720440760619,-500.0,0.00051506,120]
[331501631,1720440760690,-500.0,0.00051506,120]
[331501632,1720440760761,-584.78,0.00051506,120]
[331501633,1720440760833,-500.0,0.00051506,120]
[331501634,1720440760906,-558.55,0.00051506,120]
[331501635,1720440760980,-500.0,0.00051506,120]
[331501636,1720440761057,-500.0,0.00051506,120]
[331501637,1720440761131,-718.31,0.00051506,120]
[331501638,1720440761199,-500.0,0.00051506,120]
[331501639,1720440761473,-511.83,0.00051506,120]
[331501640,1720440761545,-500.0,0.00051506,120]
[331501641,1720440761615,-500.0,0.00051506,120]
[331501642,1720440761683,-500.0,0.00051506,120]
[331501643,1720440761751,-500.0,0.00051506,120]
[331501644,1720440761817,-500.0,0.00051506,120]
[331501645,1720440761885,-588.46,0.00051506,120]
[331501646,1720440761955,-500.0,0.00051506,120]
[331501647,1720440762023,-500.0,0.00051506,120]
[331501648,1720440762093,-725.12,0.00051506,120]
[331501649,1720440762159,-510.12,0.00051506,120]
[331501650,1720440762228,-500.0,0.00051506,120]
[331501651,1720440762296,-1169.96,0.00051506,120]
[331501652,1720440762367,-500.0,0.00051506,120]
[331501653,1720440762437,-691.49,0.00051506,120]
[331501654,1720440762507,-500.0,0.00051506,120]
[331501655,1720440762571,-500.0,0.00051506,120]
[331501656,1720440762635,-500.0,0.00051506,120]
[331501657,1720440762705,-500.0,0.00051506,120]
[331501658,1720440762772,-500.0,0.00051506,120]
[331501659,1720440762844,-500.0,0.00051506,120]
[331501660,1720440762909,-736.89,0.00051506,120]
[331501661,1720440762976,-500.0,0.00051506,120]
[331501662,1720440763041,-500.0,0.00051506,120]
[331501663,1720440763114,-500.0,0.00051506,120]
[331501664,1720440763184,-561.83,0.00051506,120]
[331501665,1720440763253,-500.0,0.00051506,120]
[331501666,1720440763323,-500.0,0.00051506,120]
[331501667,1720440763391,-500.0,0.00051506,120]
[331501668,1720440763456,-500.0,0.00051506,120]